[Event "50th La Roda Open 2024"]
[Site "La Roda"]
[Date "2024.03.27"]
[Round "1.1"]
[White "Pastor Villalba, Arturo"]
[Black "Aravindh, Chithambaram VR."]
[Result "0-1"]
[ECO "D35"]
[WhiteElo "1893"]
[BlackElo "2662"]
[Annotator "TA"]
[PlyCount "74"]
[EventDate "2024.03.27"]
[EventType "swiss"]
[EventCountry "ESP"]
[SourceTitle "playchess.com"]
[Source "ChessBase"]
[SourceQuality "1"]
[TimeControl "5400+30"]

{[%evp 18,74,0,0,19,29,18,12,40,13,19,18,33,24,15,-6,-2,-5,-4,-11,0,-25,0,-8,0,0,0,-12,-11,-16,-10,-29,-24,-44,0,-48,-25,-67,-70,-93,-72,-108,-99,-112,-127,-191,-195,-187,-87,-244,-197,-535,-528,-535,-419,-701,-569,-525,-534]} 1. d4 {[%emt 0:00:01]} Nf6 {[%emt 0:00:15]} 2. c4 {[%emt 0:00:15]} e6 {[%emt 0:00:12]} 3. Nf3 {[%emt 0:00:15]} d5 {[%emt 0:00:34]} 4. cxd5 {[%emt 0:02:07]} exd5 {[%emt 0:00:06]} 5. Nc3 {[%emt 0:00:54]} c6 {[%emt 0:00:12]} 6. Qc2 {[%emt 0:00:29]} Bd6 {[%emt 0:05:45]} 7. Bg5 {[%emt 0:01:34]} O-O {[%emt 0:00:09]} 8. e3 {[%emt 0:01:08]} Re8 {[%emt 0:00:15]} 9. Bd3 {[%emt 0:04:13]} h6 {[%emt 0:00:08]} 10. Bh4 {[%emt 0:00:29]} a5 {[%emt 0:02:46]} 11. O-O {[%emt 0:01:38]} Bg4 {[%emt 0:01:09]} 12. Nd2 {[%emt 0:12:48]} g5 {[%emt 0:01:14] Die Stellung ist ausgeglichen.} 13. Bg3 {[%emt 0:02:04]} (13. f3 $5) 13... Bxg3 {[%emt 0:00:13]} 14. hxg3 {[%emt 0:00:43]} Kg7 {[%emt 0:00:14]} 15. Nf3 {[%emt 0:03:06]} Nbd7 {[%emt 0:00:22]} 16. Bf5 {[%emt 0:01:12]} Bxf5 {[%emt 0:09:05]} 17. Qxf5 {[%emt 0:00:27]} Qe7 {[%emt 0:10:36]} 18. a3 {[%emt 0:02:44]} Qd6 {[%emt 0:07:38]} 19. Rfd1 {[%emt 0:04:34]} Re6 {[%emt 0:02:13]} (19... Nb6 {ist vielschichtiger.} 20. Ne5 Qe6 21. Qc2 Ng4) 20. Rac1 {[%emt 0:03:23]} Qe7 {[%emt 0:02:13]} 21. Qc2 {[%emt 0:09:44]} Re8 {[%emt 0:07:49]} 22. b4 {[%emt 0:07:04]} axb4 {[%emt 0:01:38]} 23. axb4 {[%emt 0:00:47]} b5 {[%emt 0:00:07]} 24. Qb2 {[%emt 0:02:10][%cal Oe3e4]} Nb6 {[%emt 0:05:56]} 25. Ne5 {[%emt 0:02:10]} Nfd7 {[%emt 0:00:44]} 26. Nd3 {[%emt 0:00:55]} (26. e4 $11 {war vorzuziehen.}) 26... Nc4 $15 {[%emt 0:00:38]} 27. Qa2 {[%emt 0:02:05]} h5 {[%emt 0:01:07]} 28. Qe2 {[%emt 0:02:19][%cal Oc1a1]} Rh6 {[%emt 0:01:09] Schwarz steht aktiver.} 29. Qf3 {[%emt 0:05:10] [#]} Nf6 $1 {[%emt 0:01:33]} 30. Qf5 {[%emt 0:04:10]} Ng4 {[%emt 0:00:40][%cal Oc4e3] Zielt auf ...Ncxe3! ab.} 31. Re1 {[%emt 0:01:53]} (31. Ne5 $17) 31... Nd6 $19 {[%emt 0:19:32]} 32. Qf3 {[%emt 0:01:33]} f5 {[%emt 0:00:08]} (32... Qe6 $19 {bietet bessere Gewinnchancen. Droht stark ...Reh8.} 33. Nc5 Qc8) 33. Qe2 $2 {[%emt 0:04:06] Danach ist Weiß chancenlos.} (33. Ne5 $17 {war die einzige Verteidigung.} Ne4 (33... Nxe5 34. dxe5 Qxe5 35. Ne2 $11) 34. Rc2) 33... Nc4 {[%emt 0:01:41] ...h4 wäre nun fies.} 34. Ra1 $2 {[%emt 0:01:10]} (34. f3 {leistet mehr Widerstand.} Ngxe3 (34... Qxe3+ 35. Qxe3 Ngxe3 36. Nd1 $17) 35. Qf2) 34... h4 {[%emt 0:01:26]} 35. gxh4 {[%emt 0:06:31]} Rxh4 {[%emt 0:00:30] ( -> ...Reh8)} 36. Qa2 {[%emt 0:00:59]} (36. f3 $142 Ngxe3 37. Nd1) 36... Reh8 {[%emt 0:06:04][%csl Gh8][%cal Rh4h1]} 37. Kf1 {[%emt 0:00:31] [#]} Ncxe3+ $1 {[%emt 0:00:21][%mdl 512] Gewichteter Fehlerwert: Weiß=0.45/Schwarz=0.20 (präzise) .  Fehler:       	Weiß=5     	Schwarz=1     Ungenau:       	Weiß=3     	Schwarz=2     OK:         	Weiß=6     	Schwarz=9     Bester:       	Weiß=1     	Schwarz=4     Stark:        	---       	Schwarz=1} 0-1

[Event "50th La Roda Open 2024"]
[Site "La Roda"]
[Date "2024.03.27"]
[Round "1.2"]
[White "Xu, Xiangyu"]
[Black "Diaz Rodriguez, Jose Antonio"]
[Result "1-0"]
[ECO "E90"]
[WhiteElo "2623"]
[BlackElo "1892"]
[Annotator "TA"]
[PlyCount "57"]
[EventDate "2024.03.27"]
[EventType "swiss"]
[EventCountry "ESP"]
[SourceTitle "playchess.com"]
[Source "ChessBase"]
[SourceQuality "1"]
[TimeControl "5400+30"]

{[%evp 9,57,31,66,50,75,63,77,79,76,65,77,83,94,91,122,77,104,87,104,103,116,107,194,200,190,175,195,180,188,188,190,171,179,183,183,175,179,179,175,168,166,152,196,183,185,177,185,170,239,239]} 1. d4 {[%emt 0:00:04]} Nf6 {[%emt 0:00:15]} 2. c4 {[%emt 0:00:11]} d6 {[%emt 0:00:56]} 3. Nf3 {[%emt 0:00:54]} g6 {[%emt 0:00:58]} 4. Nc3 {[%emt 0:00:08]} Bg7 {[%emt 0:00:07]} 5. e4 {[%emt 0:00:37]} c6 {[%emt 0:00:04]} 6. Bg5 {[%emt 0:01:07]} Bg4 {[%emt 0:03:27]} 7. Be2 {[%emt 0:00:25]} Bxf3 {[%emt 0:03:34]} 8. Bxf3 {[%emt 0:02:01] Weiß steht besser.} Nbd7 {[%emt 0:00:57]} 9. O-O {[%emt 0:00:27]} h6 {[%emt 0:01:45]} 10. Be3 {[%emt 0:00:09]} e5 {[%emt 0:07:58]} 11. d5 {[%emt 0:00:21]} c5 {[%emt 0:01:12]} 12. Nb5 {[%emt 0:02:40]} Qb8 {[%emt 0:04:00]} 13. a3 {[%emt 0:02:17] Weiß hat aktiveres Spiel. Die schwarzen Türme stehen passiv.} a6 {[%emt 0:07:14]} 14. Nc3 {[%emt 0:00:08]} Qd8 {[%emt 0:07:56]} 15. Rb1 {[%emt 0:00:38]} g5 {[%emt 0:01:45]} (15... h5 $16 {ist eine bessere Verteidigung.}) 16. h3 $18 {[%emt 0:03:39] Weiß steht deutlich besser.} O-O {[%emt 0:05:22]} 17. Qd3 {[%emt 0:02:25]} Re8 {[%emt 0:03:05]} 18. Rfc1 {[%emt 0:01:57]} Nf8 {[%emt 0:00:21]} 19. b4 {[%emt 0:00:52]} b6 {[%emt 0:00:32]} 20. Rb2 {[%emt 0:03:37]} Ng6 {[%emt 0:00:58]} 21. g3 {[%emt 0:00:39]} Qd7 {[%emt 0:04:56]} 22. Bg2 {[%emt 0:00:06]} Rab8 {[%emt 0:01:55]} 23. Rcb1 {[%emt 0:01:06] [#] Schwarz muss nun bxc5 beachten.} Qc7 {[%emt 0:00:57]} 24. Na4 {[%emt 0:02:18]} Nd7 {[%emt 0:02:53]} 25. Bf3 {[%emt 0:01:14]} b5 {[%emt 0:07:34]} 26. cxb5 {[%emt 0:00:14]} axb5 {[%emt 0:00:15]} 27. Nc3 {[%emt 0:00:11]} c4 {[%emt 0:01:26]} 28. Qf1 {[%emt 0:00:28]} f5 {[%emt 0:02:24]} (28... Nf4 $142 29. a4 (29. gxf4 exf4 30. Bd2 Bd4 $16) 29... bxa4) 29. Bh5 {[%emt 0:00:32] Gewichteter Fehlerwert: Weiß=0.09 (makellos) /Schwarz=0.18 (sehr präzise) .  Fehler:       	---       	Schwarz=2     Ungenau:       	Weiß=1     	Schwarz=2     OK:         	Weiß=9     	Schwarz=5     Bester:       	Weiß=1     	---} ({Schwächer ist} 29. exf5 e4 30. Nxe4 Ne7 $16) 1-0

[Event "50th La Roda Open 2024"]
[Site "La Roda"]
[Date "2024.03.27"]
[Round "1.3"]
[White "Mellado Sais, Carles"]
[Black "Karthik Venkataraman"]
[Result "0-1"]
[ECO "E32"]
[WhiteElo "1891"]
[BlackElo "2609"]
[Annotator "TA"]
[PlyCount "62"]
[EventDate "2024.03.27"]
[EventType "swiss"]
[EventCountry "ESP"]
[SourceTitle "playchess.com"]
[Source "ChessBase"]
[SourceQuality "1"]
[TimeControl "5400+30"]

{[%evp 9,62,16,16,-14,5,-10,14,20,81,37,47,44,50,61,37,24,37,-18,0,-39,-45,-157,-166,-158,-162,-168,-141,-151,-158,-154,-148,-212,-211,-324,-310,-381,-371,-405,-371,-1023,-1015,-1004,-522,-1004,-979,-1756,-1035,-1722,-1706,-1670,-1100,-1570,-1450,-2337,-2275]} 1. d4 {[%emt 0:00:03][%cal Bd2d4,Bd4d5][%mdl 32]} Nf6 {[%emt 0:00:10]} 2. c4 {[%emt 0:00:06]} e6 {[%emt 0:00:04]} 3. Nc3 {[%emt 0:00:13]} Bb4 {[%emt 0:00:09]} 4. Qc2 {[%emt 0:00:30]} d6 {[%emt 0:00:20]} 5. e4 {[%emt 0:00:28]} c5 {[%emt 0:03:35]} 6. d5 {[%emt 0:02:10]} O-O {[%emt 0:01:00]} 7. Bd3 {[%emt 0:01:13]} Re8 {[%emt 0:01:16]} 8. Nge2 {[%emt 0:01:21] The position is equal.} Nbd7 {[%emt 0:00:15]} (8... exd5 $11 9. cxd5 c4 10. Bxc4 Rxe4) 9. O-O {[%emt 0:01:45]} Ne5 {[%emt 0:00:49]} 10. Bg5 {[%emt 0:04:31][%cal Bc1g5,Bg5h4,Bh4g3][%mdl 32] Strongly threatening f4.} h6 {[%emt 0:01:17]} 11. Bh4 {[%emt 0:01:05]} Ng6 {[%emt 0:00:42]} 12. Bg3 {[%emt 0:01:14]} e5 {[%emt 0:02:09]} 13. Rae1 {[%emt 0:03:10]} (13. a3 $14 Bxc3 14. Nxc3) 13... Nh5 $11 {[%emt 0:00:37]} 14. f4 {[%emt 0:05:44]} exf4 {[%emt 0:00:46]} 15. Nxf4 {[%emt 0:01:43] [#] White is now going downhill.} (15. Bxf4 $15 Bg4 16. Bd2) 15... Nxg3 $1 $17 {[%emt 0:00:22]} 16. hxg3 {[%emt 0:01:47]} Ne5 {[%emt 0:00:05]} 17. Re3 {[%emt 0:05:43]} Bd7 {[%emt 0:01:50]} 18. a3 {[%emt 0:04:54]} Ba5 {[%emt 0:00:08][%cal Ob7b5]} 19. Be2 {[%emt 0:06:00]} a6 {[%emt 0:01:33][%cal Ob7b5]} 20. Na2 {[%emt 0:04:29]} (20. a4 $17) 20... b5 $19 {[%emt 0:00:24]} 21. Kh1 {[%emt 0:05:15]} (21. b3 {was necessary.}) 21... bxc4 {[%emt 0:00:51]} 22. Rb1 {[%emt 0:03:47]} Rb8 {[%emt 0:00:56]} 23. Bxc4 {[%emt 0:02:41]} Bd2 {[%emt 0:00:42]} ({Much less strong is} 23... Ng4 24. Rf3 $19) 24. Re2 {[%emt 0:02:48]} (24. Rf3) 24... Bxf4 {[%emt 0:00:10] Black is clearly winning.} 25. gxf4 {[%emt 0:00:18]} Qh4+ {[%emt 0:00:08]} 26. Kg1 {[%emt 0:00:40]} Ng4 {[%emt 0:01:04] [#] ( -> ...Qh2+)} 27. Ree1 {[%emt 0:01:51]} Qh2+ {[%emt 0:00:21]} 28. Kf1 {[%emt 0:00:44]} Qxf4+ {[%emt 0:00:08]} 29. Kg1 {[%emt 0:00:42]} Qh2+ {[%emt 0:00:29]} 30. Kf1 {[%emt 0:00:22]} f5 {[%emt 0:08:33] And now ...fxe4 would win.} 31. Bd3 {[%emt 0:02:57]} fxe4 {[%emt 0:00:15] Weighted Error Value: White=1.06/Black=0.12 (very precise) .  Mistake:       	White=5     	Black=1      Inaccurate:     	White=3     	---        OK:         	White=6     	Black=9      Best:        	White=1     	Black=1      Strong:       	---       	Black=1} 0-1

[Event "50th La Roda Open 2024"]
[Site "La Roda"]
[Date "2024.03.27"]
[Round "1.4"]
[White "Pranav Vijay"]
[Black "Campos Rodriguez, Alvaro"]
[Result "1-0"]
[ECO "C11"]
[WhiteElo "2252"]
[BlackElo "1890"]
[Annotator "RC"]
[PlyCount "83"]
[EventDate "2024.03.27"]
[EventType "swiss"]
[EventCountry "ESP"]
[SourceTitle "playchess.com"]
[Source "ChessBase"]
[SourceQuality "1"]
[TimeControl "5400+30"]

1. e4 {[%emt 0:00:08]} e6 {[%emt 0:00:34]} 2. d4 {[%emt 0:00:35]} d5 {[%emt 0:00:04]} 3. Nc3 {[%emt 0:00:13]} Nf6 {[%emt 0:00:47]} 4. e5 {[%emt 0:00:32]} Nfd7 {[%emt 0:00:13]} 5. f4 {[%emt 0:00:10]} c5 {[%emt 0:01:18]} 6. Nf3 {[%emt 0:00:07]} Nc6 {[%emt 0:00:19]} 7. Be3 {[%emt 0:00:30]} cxd4 {[%emt 0:03:06]} 8. Nxd4 {[%emt 0:00:09]} Be7 {[%emt 0:01:26]} 9. Qd2 {[%emt 0:01:01]} O-O {[%emt 0:01:45]} 10. O-O-O {[%emt 0:00:22]} a6 {[%emt 0:04:42]} 11. h4 {[%emt 0:00:53]} Nxd4 {[%emt 0:03:41]} 12. Bxd4 {[%emt 0:00:10]} b5 {[%emt 0:00:25]} 13. Bd3 {[%emt 0:04:56]} Nc5 {[%emt 0:04:02]} 14. g4 {[%emt 0:01:45]} b4 {[%emt 0:04:12]} 15. Ne2 {[%emt 0:00:10]} Bd7 {[%emt 0:00:45]} 16. f5 {[%emt 0:09:22]} Rc8 {[%emt 0:08:22]} 17. Bxc5 {[%emt 0:00:51]} Bxc5 {[%emt 0:03:54]} 18. f6 {[%emt 0:00:19]} Qb6 {[%emt 0:00:11]} 19. Rh3 {[%emt 0:00:32]} Rfd8 {[%emt 0:03:36]} 20. fxg7 {[%emt 0:02:30]} Bb5 {[%emt 0:02:11]} 21. Nf4 {[%emt 0:07:28]} Bxd3 {[%emt 0:00:52]} 22. Qxd3 {[%emt 0:02:59]} Qb5 {[%emt 0:03:41]} 23. Qd2 {[%emt 0:04:59]} Qc4 {[%emt 0:11:04]} 24. Kb1 {[%emt 0:00:48]} Be3 {[%emt 0:00:31]} 25. Rxe3 Qxf4 26. Qe2 {[%emt 0:02:38]} Rc4 {[%emt 0:09:32]} 27. b3 {[%emt 0:04:33]} Rd4 {[%emt 0:32:47]} 28. Rxd4 {[%emt 0:07:43]} Qxd4 {[%emt 0:00:00]} 29. Rd3 {[%emt 0:00:08]} Qc5 {[%emt 0:00:00]} 30. Rd1 {[%emt 0:09:10]} Rc8 {[%emt 0:00:00]} 31. h5 {[%emt 0:00:38]} Kxg7 {[%emt 0:00:00]} 32. g5 {[%emt 0:00:53]} a5 {[%emt 0:00:00]} 33. Rc1 {[%emt 0:04:31]} Qc3 {[%emt 0:00:00]} 34. Rf1 {[%emt 0:01:16]} Rc7 {[%emt 0:00:00]} 35. g6 {[%emt 0:06:28]} hxg6 {[%emt 0:00:00]} 36. hxg6 {[%emt 0:00:02]} fxg6 {[%emt 0:00:00]} 37. Qf2 {[%emt 0:00:06]} Qh3 {[%emt 0:02:36]} 38. Qf6+ {[%emt 0:00:07]} Kh7 {[%emt 0:01:05]} 39. Rf4 {[%emt 0:00:08]} Qh1+ {[%emt 0:00:54]} 40. Kb2 {[%emt 0:00:04]} Rxc2+ {[%emt 0:00:09]} 41. Kxc2 {[%emt 0:00:04]} Qg2+ {[%emt 0:00:06]} 42. Kd3 {[%emt 0:00:10]} 1-0

[Event "50th La Roda Open 2024"]
[Site "La Roda"]
[Date "2024.03.27"]
[Round "1.5"]
[White "Corchon Granero, Mateo"]
[Black "Albornoz Cabrera, Carlos Daniel"]
[Result "0-1"]
[ECO "B25"]
[WhiteElo "1890"]
[BlackElo "2603"]
[Annotator "TA"]
[PlyCount "66"]
[EventDate "2024.03.27"]
[EventType "swiss"]
[EventCountry "ESP"]
[SourceTitle "playchess.com"]
[Source "ChessBase"]
[SourceQuality "1"]
[TimeControl "5400+30"]

{[%evp 21,66,-19,-14,-14,-15,-12,-16,-16,0,0,0,0,0,0,0,0,0,-31,0,0,0,-8,-23,-130,-139,-113,-75,-235,-229,-242,-132,-132,-131,-119,-114,-108,-102,-335,-200,-874,-862,-806,-866,-1091,-1187,-1114,-1044]} 1. e4 {[%emt 0:00:06]} c5 {[%emt 0:00:05]} 2. Ne2 {[%emt 0:00:43]} Nf6 {[%emt 0:00:07]} 3. Nbc3 {[%emt 0:00:39]} d6 {[%emt 0:00:05]} 4. g3 {[%emt 0:01:01]} g6 {[%emt 0:00:12]} 5. Bg2 {[%emt 0:00:44]} Nc6 {[%emt 0:00:29]} 6. d3 {[%emt 0:00:51]} Bg7 {[%emt 0:00:06]} 7. O-O {[%emt 0:01:53]} O-O {[%emt 0:00:04]} 8. Be3 {[%emt 0:01:19]} Rb8 {[%emt 0:00:16]} 9. a4 {[%emt 0:00:47]} a6 {[%emt 0:00:05]} 10. h3 {[%emt 0:00:30]} b5 {[%emt 0:02:00]} 11. axb5 {[%emt 0:00:44]} axb5 {[%emt 0:00:02]} 12. Qd2 {[%emt 0:00:22]} b4 {[%emt 0:00:23]} 13. Nd1 {[%emt 0:00:09]} Bb7 {[%emt 0:02:21]} 14. Bh6 {[%emt 0:02:24] Die Stellung ist ausgeglichen.} Bxh6 {[%emt 0:02:51]} 15. Qxh6 {[%emt 0:00:15]} Nd4 {[%emt 0:00:05]} 16. Qd2 {[%emt 0:02:54]} e5 {[%emt 0:03:05]} 17. Nxd4 {[%emt 0:03:57]} cxd4 {[%emt 0:04:01]} 18. b3 {[%emt 0:02:07][%cal Od1b2]} (18. Qxb4 Bxe4 19. Qa5 Bxg2 20. Qxd8 Rfxd8 $17) 18... Nh5 {[%emt 0:14:38]} 19. Bf3 {[%emt 0:12:25][%cal Od1b2]} (19. Qxb4 Bxe4 20. Qd2 Bxg2 21. Kxg2 f5 $15) 19... Ng7 {[%emt 0:03:08]} 20. Nb2 {[%emt 0:02:25]} (20. Qxb4 $2 {geht unter.} Bxe4 $19) 20... f5 {[%emt 0:01:48]} 21. Ra4 {[%emt 0:03:48]} Ne6 {[%emt 0:09:03]} 22. exf5 {[%emt 0:09:53]} (22. Rxb4 $11 {bleibt in der Remisbreite.} Ng5 23. Bg2) 22... Bxf3 $17 {[%emt 0:01:48]} 23. fxe6 {[%emt 0:00:10]} Qf6 {[%emt 0:03:18]} 24. Ra7 $2 {[%emt 0:05:23]} (24. Nc4 $17) 24... Qxe6 $19 {[%emt 0:00:50]} 25. Qh6 {[%emt 0:00:41] [#]} Rb7 {[%emt 0:03:37]} ({Günstiger ist} 25... Bb7 $1 $19 26. Re1 Qd5 27. Rxb7 Rxb7) 26. Rxb7 $17 {[%emt 0:18:17]} Bxb7 $40 {[%emt 0:00:08][%mdl 128] Schwarz will per K.O. gewinnen.} 27. Qh4 {[%emt 0:00:33]} Qf7 {[%emt 0:06:58] Schwarz hat aktiveres Spiel.} 28. f3 {[%emt 0:00:29]} Qc7 {[%emt 0:01:31]} 29. Rf2 {[%emt 0:06:57] [#]} (29. Nc4 $17 {war erzwungen.}) 29... Qc3 {[%emt 0:08:38]} ({Weniger gut wäre} 29... Rxf3 30. Rxf3 Bxf3 31. Qf6 $17) (29... Bxf3 $142 30. Nc4 d5) 30. Nd1 $2 {[%emt 0:05:29]} (30. Nc4) 30... Qe1+ $19 {[%emt 0:02:47] Schwarz steht klar auf Gewinn.} 31. Rf1 {[%emt 0:00:15]} Qe2 {[%emt 0:01:19]} 32. Qe7 {[%emt 0:02:10]} Bxf3 {[%emt 0:00:22]} 33. Nf2 {[%emt 0:00:13]} Bd5 {[%emt 0:01:49] Gewichteter Fehlerwert: Weiß=0.58/Schwarz=0.14 (sehr präzise) .  Verlustzug:     	Weiß=1     	---        Fehler:       	Weiß=3     	Schwarz=2     Ungenau:       	Weiß=1     	Schwarz=1     OK:         	Weiß=7     	Schwarz=6     Bester:       	Weiß=4     	Schwarz=2} 0-1

[Event "50th La Roda Open 2024"]
[Site "La Roda"]
[Date "2024.03.27"]
[Round "1.6"]
[White "Iturrizaga Bonelli, Eduardo"]
[Black "Jafar Hussain, Yaser"]
[Result "1-0"]
[ECO "A20"]
[WhiteElo "2588"]
[BlackElo "1887"]
[Annotator "TA"]
[PlyCount "65"]
[EventDate "2024.03.27"]
[EventType "swiss"]
[EventCountry "ESP"]
[SourceTitle "playchess.com"]
[Source "ChessBase"]
[SourceQuality "1"]
[TimeControl "5400+30"]

{[%evp 10,65,14,1,40,38,14,27,22,22,35,25,34,33,36,31,54,54,54,55,95,75,66,68,65,80,106,111,109,108,105,104,157,175,187,183,172,168,181,185,201,207,215,222,204,211,208,209,214,211,262,304,610,404,723,723,708,672]} 1. c4 {[%emt 0:00:04]} e5 {[%emt 0:00:10]} 2. g3 {[%emt 0:00:25]} d5 {[%emt 0:00:18]} 3. cxd5 {[%emt 0:00:07]} Nf6 {[%emt 0:00:08]} 4. Bg2 {[%emt 0:00:06]} Nxd5 {[%emt 0:00:08]} 5. Nf3 {[%emt 0:00:04]} Nc6 {[%emt 0:00:50]} 6. O-O {[%emt 0:00:06]} Be6 {[%emt 0:00:20]} 7. d4 {[%emt 0:00:27]} exd4 $1 {[%emt 0:00:09]} 8. Nxd4 {[%emt 0:00:10]} Nxd4 {[%emt 0:00:08] White has an edge.} 9. Qxd4 {[%emt 0:00:05]} c6 {[%emt 0:00:23]} 10. Nc3 {[%emt 0:00:34]} Qb6 {[%emt 0:00:32]} 11. Qa4 {[%emt 0:01:34]} Nxc3 {[%emt 0:09:10]} 12. bxc3 {[%emt 0:00:31][%cal Oa1b1] Threatens to win with Rb1!} Be7 {[%emt 0:00:09]} 13. Bf4 {[%emt 0:04:45] aiming for Rab1.} Qc5 {[%emt 0:06:55][%cal Oe8g8]} 14. Rab1 {[%emt 0:04:09] And now Be3 would win.} b5 {[%emt 0:02:06]} 15. Qd4 {[%emt 0:10:29]} Qxd4 {[%emt 0:07:04]} 16. cxd4 {[%emt 0:00:05]} Rc8 {[%emt 0:00:23][%cal Ob5b4] [#]} 17. d5 $1 {[%emt 0:09:01] White leaves nothing to chance now.} Bxd5 {[%emt 0:09:25]} (17... cxd5 18. Rxb5) 18. Bxd5 {[%emt 0:00:39]} cxd5 {[%emt 0:00:05]} 19. Rxb5 {[%emt 0:00:07]} O-O {[%emt 0:14:05]} 20. Rxd5 {[%emt 0:00:20] White is more active.} Rc2 {[%emt 0:00:05] [#]} ({Black should try} 20... Rfd8 21. Rxd8+ Bxd8) 21. Rd7 $1 $16 {[%emt 0:06:38]} Rxe2 {[%emt 0:00:10]} 22. Be3 {[%emt 0:01:00] Wards off Bc5} (22. Rxa7 Bc5 23. Rc7 Bb4 $11) 22... Bf6 {[%emt 0:00:42]} 23. Rxa7 {[%emt 0:00:07]} ({Inferior is} 23. Bxa7 Rxa2 24. Kg2 h5 $11) 23... h5 {[%emt 0:00:07][%cal Bh7h5,Bh5h4][%mdl 32]} 24. Rd1 {[%emt 0:01:33]} h4 {[%emt 0:01:33]} 25. Kg2 {[%emt 0:00:25]} Re8 {[%emt 0:00:20]} 26. Kf3 {[%emt 0:00:13]} Rc2 {[%emt 0:00:35]} 27. Rdd7 {[%emt 0:02:50]} hxg3 {[%emt 0:00:16]} 28. hxg3 {[%emt 0:00:07]} Rf8 {[%emt 0:01:21]} 29. a4 {[%emt 0:02:51][%cal Ba2a4,Ba4a5][%mdl 32]} Rcc8 {[%emt 0:00:09]} 30. a5 {[%emt 0:00:22]} Ra8 $2 {[%emt 0:00:13]} (30... Rc3 31. Kg2 Rc2) 31. Rxf7 {[%emt 0:01:47]} Bc3 {[%emt 0:03:06]} ({Stronger than} 31... Rxf7 32. Rxa8+ Kh7 33. Kg2 $18) (31... Bd4 $142) 32. Rxf8+ $18 {[%emt 0:00:12]} Rxf8+ {[%emt 0:00:07]} 33. Kg2 {[%emt 0:00:33] Weighted Error Value: White=0.11 (very precise) /Black=0.24 (precise) .  Mistake:       	---       	Black=3      Inaccurate:     	White=1     	Black=2      OK:         	White=14    	Black=4      Best:        	White=1     	Black=1      Strong:       	---       	Black=1} 1-0